bitfinex-derivatives/quotes_BTCF0:USTF0_20241231
["timestamp","ask_amount","ask_price","bid_price","bid_amount"]
[1735668134909,0.053137,94233.0,94225.0,0.053141]
[1735668135102,0.399469,94240.0,94224.0,0.3608]
[1735668135309,0.053133,94239.0,94224.0,0.3608]
[1735668135513,0.053139,94228.0,94224.0,0.3608]
[1735668135713,0.053141,94225.0,94224.0,0.3608]
[1735668136016,0.003,94233.0,94224.0,0.413942]
[1735668136317,0.053138,94231.0,94229.0,0.053139]
[1735668136513,0.053138,94230.0,94229.0,0.053139]
[1735668136714,0.053138,94230.0,94229.0,1.553139]
[1735668137117,0.053138,94230.0,94229.0,0.053139]
[1735668137822,0.001,94233.0,94224.0,0.3608]
[1735668137823,0.053141,94225.0,94224.0,0.3608]
[1735668138206,0.053142,94224.0,94220.0,0.053143]
[1735668138408,0.053139,94229.0,94220.0,0.053143]
[1735668138605,0.053142,94224.0,94220.0,0.053143]
[1735668138811,0.002,94230.0,94214.0,0.3608]
[1735668138812,0.053142,94223.0,94214.0,0.3608]
[1735668139020,0.053144,94220.0,94214.0,0.3608]
[1735668139608,0.053147,94215.0,94214.0,0.3608]
[1735668139807,0.053148,94212.0,94211.0,0.0006]
[1735668140015,0.053151,94208.0,94207.0,0.053151]
[1735668140205,0.1149,94219.0,94206.0,0.3608]
[1735668140511,0.053151,94207.0,94206.0,0.3608]
[1735668140710,0.053153,94203.0,94202.0,0.19026993]
[1735668141315,0.053154,94202.0,94201.0,0.053154]
[1735668143226,0.053157,94197.0,94196.0,0.36136]
[1735668143422,0.3608,94213.0,94196.0,0.053157]
[1735668143617,0.053157,94198.0,94197.0,0.053157]
[1735668145118,0.053157,94197.0,94196.0,0.005]
[1735668145921,0.053157,94197.0,94183.0,0.19026993]
[1735668146129,0.001,94198.0,94197.0,0.009]
[1735668146326,0.054156,94198.0,94197.0,0.009]
[1735668146527,0.054156,94198.0,94197.0,0.062157]
[1735668146722,0.054156,94198.0,94197.0,1.553157]
[1735668146723,0.053156,94198.0,94197.0,1.553157]
[1735668147019,0.053153,94204.0,94198.0,0.053156]
[1735668147217,0.053154,94203.0,94202.0,0.053154]
[1735668149224,0.053154,94203.0,94197.0,1.51156]
[1735668149225,0.37224552,94213.0,94197.0,1.51156]
[1735668149423,0.37224552,94213.0,94206.0,0.053151]
[1735668149626,0.053151,94207.0,94206.0,0.053151]
[1735668149819,0.053151,94207.0,94197.0,1.503]
[1735668149820,0.053153,94203.0,94202.0,0.005]
[1735668150227,0.053153,94203.0,94202.0,0.055154]
[1735668150829,0.053153,94203.0,94202.0,0.002]
[1735668151033,0.053153,94203.0,94202.0,0.007]
[1735668151232,0.413953,94203.0,94170.0,0.162869]
[1735668151434,0.053167,94179.0,94177.0,0.0547606]
[1735668151725,0.3608,94187.0,94178.0,0.053167]
[1735668152032,0.053167,94179.0,94178.0,0.053167]
[1735668152529,0.053165,94185.0,94184.0,0.053163]
[1735668153117,0.053167,94180.0,94179.0,0.053167]
[1735668155225,0.053167,94178.0,94177.0,0.0015926]
[1735668156230,0.06414267,94178.0,94177.0,0.0015926]
[1735668156429,0.18564267,94178.0,94177.0,0.0055926]
[1735668156931,0.18464267,94178.0,94177.0,0.0015926]
[1735668157125,0.18564267,94178.0,94177.0,0.0055926]
[1735668157527,0.18564267,94178.0,94177.0,0.0085926]
[1735668159032,0.053169,94176.0,94131.0,0.61449324]
[1735668159226,0.053169,94176.0,94144.0,0.053187]
[1735668159227,0.053183,94150.0,94144.0,0.053187]
[1735668159428,0.053187,94143.0,94142.0,0.3608]
[1735668159728,0.053187,94143.0,94142.0,0.413988]
[1735668160033,0.053187,94143.0,94142.0,0.053188]
[1735668160237,0.053187,94143.0,94142.0,0.062188]
[1735668160919,0.053187,94143.0,94142.0,0.071188]
[1735668161334,0.053187,94143.0,94142.0,0.062188]
[1735668161630,0.054187,94143.0,94142.0,0.071188]
[1735668161834,0.054187,94143.0,94142.0,0.067188]
[1735668163735,0.054187,94143.0,94142.0,0.014]
[1735668165535,0.054187,94143.0,94142.0,0.067188]
[1735668167033,0.001,94143.0,94142.0,0.067188]
[1735668168125,0.001,94143.0,94142.0,1.567188]
[1735668169334,0.01086311,94171.0,94142.0,1.867188]
[1735668169536,0.414969,94176.0,94162.0,0.053176]
[1735668169841,0.414969,94176.0,94175.0,0.053169]
[1735668169842,0.3608,94176.0,94175.0,0.053169]
[1735668170134,0.413969,94176.0,94175.0,0.053169]
[1735668170733,0.42501363,94176.0,94175.0,0.053169]
[1735668171135,0.42901363,94176.0,94175.0,0.053169]
[1735668171831,0.01504463,94176.0,94175.0,0.053169]
[1735668172144,0.006,94176.0,94175.0,0.053169]
[1735668172641,0.006,94176.0,94169.0,0.3608]
[1735668172642,0.3608,94204.0,94197.0,0.053156]
[1735668172829,0.053157,94198.0,94197.0,0.053156]
[1735668173336,0.01262334,94199.0,94198.0,0.053156]
[1735668174343,0.01462334,94199.0,94198.0,0.053156]
[1735668174739,0.01462334,94199.0,94189.0,1.5]
[1735668174740,0.053161,94190.0,94189.0,1.5]
[1735668174946,0.3608,94190.0,94189.0,0.053161]
[1735668175628,0.37342334,94199.0,94189.0,0.053161]
[1735668175841,0.42657934,94199.0,94198.0,0.053156]
[1735668177338,0.3608,94199.0,94198.0,0.053156]
[1735668177841,0.3608,94199.0,94198.0,1.557156]
[1735668178142,0.3608,94199.0,94198.0,0.058156]
[1735668178343,0.053148,94213.0,94207.0,0.053151]
[1735668178532,0.3608,94214.0,94207.0,0.053151]
[1735668178533,0.053149,94211.0,94207.0,0.053151]
[1735668178848,0.053149,94211.0,94199.0,1.5]
[1735668179440,0.01091603,94213.0,94199.0,1.5]
[1735668179747,0.3608,94214.0,94209.0,0.05315]
[1735668180546,0.001,94211.0,94209.0,0.05315]
[1735668181339,0.3608,94214.0,94213.0,0.053148]
[1735668181340,0.3618,94214.0,94213.0,0.053148]
[1735668181643,0.3608,94225.0,94224.0,0.053142]
[1735668181945,0.3608,94233.0,94232.0,0.053137]
[1735668183264,0.3608,94233.0,94216.0,0.3608]
[1735668183265,0.053144,94221.0,94217.0,0.053145]
[1735668183769,0.3608,94223.0,94206.0,0.3608]
[1735668183964,0.053151,94208.0,94206.0,0.3608]
[1735668184273,0.053151,94208.0,94206.0,0.413952]
[1735668184574,0.1195,94220.0,94206.0,0.3608]
[1735668184972,0.053144,94219.0,94217.0,0.001]
[1735668186159,0.053151,94207.0,94206.0,0.001]
[1735668186762,0.296251,94207.0,94206.0,0.004]
[1735668187668,0.296251,94207.0,94206.0,0.003]
[1735668188274,0.175751,94207.0,94206.0,0.003]
[1735668188461,0.053151,94207.0,94206.0,0.053152]
[1735668188668,0.053151,94207.0,94190.0,0.00159236]
[1735668188669,0.053158,94195.0,94192.0,0.053159]
[1735668188867,0.3608,94208.0,94193.0,0.053158]
[1735668188868,0.053159,94194.0,94193.0,0.053158]
[1735668189070,0.3608,94199.0,94193.0,0.053158]
[1735668189267,0.413956,94199.0,94193.0,0.053158]
[1735668189577,0.053157,94197.0,94193.0,0.053158]
[1735668190076,0.3608,94199.0,94193.0,0.053158]
[1735668190274,0.053158,94195.0,94193.0,0.053158]
[1735668190774,0.053158,94195.0,94193.0,0.059158]
[1735668191366,0.054158,94195.0,94194.0,0.053158]
[1735668193370,0.053158,94195.0,94194.0,0.053158]
[1735668193572,0.054158,94195.0,94194.0,0.061158]
[1735668194066,0.3608,94199.0,94194.0,0.005]
[1735668194271,0.3608,94199.0,94198.0,0.053156]
[1735668194577,0.413956,94199.0,94198.0,0.053156]
[1735668194767,0.413956,94199.0,94198.0,1.553156]
[1735668195166,0.413956,94199.0,94198.0,0.053156]
[1735668195563,0.053152,94205.0,94194.0,0.3648]
[1735668195769,0.053152,94205.0,94204.0,0.053153]
[1735668196281,0.3608,94208.0,94195.0,1.5]
[1735668196282,0.3608,94208.0,94207.0,0.053151]
[1735668196779,0.3608,94226.0,94225.0,0.053141]
[1735668197171,0.3608,94226.0,94217.0,0.053145]
[1735668197477,0.3608,94226.0,94207.0,0.053151]
[1735668197478,0.3608,94218.0,94207.0,0.053151]
[1735668197675,0.3608,94218.0,94202.0,0.053154]
[1735668197874,0.053153,94203.0,94202.0,0.053154]
[1735668199267,0.053157,94198.0,94197.0,0.053156]
[1735668199578,0.053157,94198.0,94190.0,0.00159236]
[1735668199783,0.05316,94191.0,94190.0,0.00159236]
[1735668200979,0.05416,94191.0,94190.0,0.00859236]
[1735668201671,0.05416,94191.0,94190.0,0.01159236]
[1735668202066,0.05416,94191.0,94190.0,0.00959236]
[1735668202573,0.053174,94167.0,94166.0,0.3608]
[1735668202990,0.053179,94157.0,94156.0,0.19026993]
[1735668203380,0.413979,94157.0,94156.0,0.19026993]
[1735668203971,0.053185,94148.0,94145.0,0.053186]
[1735668204285,0.053185,94148.0,94132.0,0.19026993]
[1735668204471,0.3608,94157.0,94146.0,0.053186]
[1735668204881,0.413979,94157.0,94156.0,0.004]
[1735668205076,0.05319,94138.0,94132.0,0.19026993]
[1735668205278,0.72487056,94157.0,94130.0,0.053194]
[1735668205279,0.053191,94136.0,94130.0,0.053194]
[1735668205477,0.053191,94136.0,94129.0,0.3608]
[1735668205478,0.3608,94139.0,94129.0,0.3608]
[1735668205773,0.053194,94131.0,94129.0,0.3608]
[1735668205984,0.053193,94133.0,94129.0,0.3608]
[1735668206178,0.1144,94138.0,94129.0,0.3608]
[1735668206372,0.001,94148.0,94129.0,0.3608]
[1735668206576,0.001,94148.0,94147.0,0.053185]
[1735668207575,0.053182,94152.0,94147.0,1.553185]
[1735668208175,0.053182,94152.0,94147.0,1.559185]
[1735668208486,0.001,94148.0,94147.0,1.506]
[1735668208782,0.053184,94149.0,94147.0,1.503]
[1735668208984,0.053184,94149.0,94147.0,1.505]
[1735668209984,0.413984,94149.0,94147.0,0.005]
[1735668210382,0.413984,94149.0,94147.0,0.003]
[1735668210586,0.413984,94149.0,94147.0,0.002]
[1735668210789,0.413984,94149.0,94147.0,0.005]
[1735668211187,0.3608,94149.0,94136.0,0.053191]
[1735668211489,0.053188,94143.0,94139.0,0.3608]
[1735668211883,0.053189,94141.0,94139.0,0.3608]
[1735668212082,0.053189,94141.0,94121.0,0.1224]
[1735668212083,0.053194,94131.0,94121.0,0.0532]
[1735668212281,0.053194,94131.0,94119.0,0.3608]
[1735668212682,0.053194,94131.0,94129.0,0.413995]
[1735668212881,0.053194,94131.0,94129.0,0.3608]
[1735668213878,0.1172,94130.0,94129.0,0.3608]
[1735668214389,0.1172,94130.0,94129.0,0.002]
[1735668214881,0.1172,94130.0,94119.0,0.3608]
[1735668215083,0.053196,94127.0,94119.0,0.3608]
[1735668215483,0.413996,94127.0,94108.0,0.1228]
[1735668215685,0.053197,94126.0,94108.0,0.1228]
[1735668215887,0.053204,94113.0,94109.0,0.053206]
[1735668216183,0.053203,94115.0,94108.0,0.1228]
[1735668216388,0.053203,94115.0,94112.0,0.053204]
[1735668217091,0.053203,94115.0,94113.0,0.053204]
[1735668217290,0.053206,94109.0,94108.0,0.1228]
[1735668217588,0.12173935,94114.0,94087.0,0.053819]
[1735668217778,0.3608,94099.0,94086.0,0.36239414]
[1735668218185,0.053217,94093.0,94092.0,0.053216]
[1735668219885,0.3608,94108.0,94088.0,0.053218]
[1735668220085,0.3608,94126.0,94101.0,0.3608]
[1735668220086,0.053205,94112.0,94101.0,0.3608]
[1735668220285,0.053205,94112.0,94110.0,0.3608]
[1735668220585,0.053205,94112.0,94111.0,1.5]
[1735668221498,0.053205,94112.0,94111.0,1.8608]
[1735668221786,0.054205,94112.0,94111.0,1.8618]
[1735668223296,0.054205,94112.0,94111.0,1.504]
[1735668223598,0.054205,94112.0,94111.0,0.004]
[1735668225692,0.053216,94093.0,94092.0,0.053216]
[1735668225888,0.3608,94102.0,94091.0,0.053216]
[1735668226089,0.053213,94099.0,94093.0,0.053215]
[1735668226294,0.053213,94099.0,94094.0,0.053214]
[1735668226490,0.053213,94099.0,94080.0,0.162869]
[1735668226491,0.1174,94111.0,94087.0,0.3608]
[1735668226692,0.053209,94105.0,94104.0,0.053209]
[1735668226999,0.053209,94105.0,94097.0,0.3608]
[1735668227187,0.053215,94094.0,94092.0,0.003]
[1735668227391,0.053215,94094.0,94093.0,0.053215]
[1735668227894,0.053218,94089.0,94088.0,1.553778]
[1735668228099,0.053218,94089.0,94088.0,1.553218]
[1735668229192,0.053217,94092.0,94091.0,0.053215]
[1735668229397,0.162869,94101.0,94087.0,0.3608]
[1735668229699,0.053218,94088.0,94087.0,0.3608]
[1735668230689,0.053218,94088.0,94087.0,0.414019]
[1735668230892,0.001,94088.0,94087.0,0.414019]
[1735668231396,0.001,94088.0,94087.0,0.416019]
[1735668231600,0.001,94088.0,94087.0,2.10628893]
[1735668231901,0.05265719,94091.0,94090.0,0.053217]
[1735668233196,0.05365719,94091.0,94090.0,0.054217]
[1735668233499,0.05365719,94091.0,94090.0,0.30791024]
[1735668233902,0.05365719,94091.0,94090.0,0.30991024]
[1735668234297,0.05365719,94091.0,94090.0,0.056217]
[1735668234602,0.001,94091.0,94090.0,0.056217]
[1735668235699,0.053212,94100.0,94099.0,0.053212]
[1735668235893,0.053212,94100.0,94099.0,0.414012]
[1735668237194,0.053212,94100.0,94099.0,0.416012]
[1735668240902,0.1086601,94140.0,94106.0,0.053208]
[1735668240903,0.01085711,94107.0,94106.0,0.053208]
[1735668241092,0.053201,94120.0,94119.0,0.053201]
[1735668241503,0.2353,94129.0,94114.0,0.3608]
[1735668241703,0.0532,94121.0,94120.0,0.0532]
[1735668242499,0.2353,94129.0,94126.0,0.053196]
[1735668242500,0.053197,94127.0,94126.0,0.053196]
[1735668242999,0.01074903,94130.0,94117.0,0.1086601]
[1735668243307,0.2403,94147.0,94146.0,0.053186]
[1735668243504,0.1251,94147.0,94146.0,0.053186]
[1735668243707,0.1251,94147.0,94141.0,0.053188]
[1735668243916,0.1251,94147.0,94130.0,0.1086601]
[1735668244207,0.01108034,94147.0,94146.0,0.053186]
[1735668244506,0.17937287,94161.0,94160.0,0.053178]
[1735668245511,0.05318,94156.0,94146.0,0.19087454]
[1735668245696,0.17937287,94161.0,94146.0,0.19087454]
[1735668246002,0.12619587,94161.0,94160.0,0.053178]
[1735668246601,0.13519587,94161.0,94160.0,0.053178]
[1735668247205,0.14419587,94161.0,94160.0,0.054178]
[1735668247602,0.13519587,94161.0,94160.0,0.054178]
[1735668247803,0.12819587,94161.0,94160.0,0.053178]
[1735668247999,0.13019587,94161.0,94160.0,0.053178]
[1735668250707,0.01499587,94161.0,94160.0,0.053178]
[1735668251412,0.06817287,94161.0,94160.0,0.053178]
[1735668252007,0.01499587,94161.0,94144.0,0.3608]
[1735668252202,0.053183,94150.0,94149.0,0.053183]
[1735668252423,0.053186,94146.0,94144.0,0.413986]
[1735668252712,0.3608,94149.0,94128.0,0.19087454]
[1735668252917,0.053191,94137.0,94128.0,0.19087454]
[1735668253105,0.053191,94137.0,94125.0,0.19087454]
[1735668253305,0.1239,94148.0,94127.0,0.16278198]
[1735668253502,0.053185,94147.0,94146.0,0.053185]
[1735668253811,0.3608,94149.0,94137.0,0.16278198]
[1735668254009,0.3608,94149.0,94148.0,0.053184]
[1735668255115,0.01095334,94151.0,94150.0,0.053183]
[1735668255312,0.053183,94151.0,94150.0,0.053183]
[1735668255512,0.1203,94156.0,94155.0,0.05318]
[1735668255513,0.05318,94156.0,94155.0,0.05318]
[1735668255716,0.05318,94156.0,94145.0,0.3608]
[1735668255717,0.01081215,94157.0,94156.0,0.05318]
[1735668255918,0.053178,94161.0,94145.0,0.3608]
[1735668256109,0.053178,94160.0,94157.0,0.053179]
[1735668256311,0.053178,94160.0,94145.0,0.3608]
[1735668256511,0.13601028,94166.0,94150.0,0.16278198]
[1735668256707,0.53088101,94189.0,94166.0,0.053174]
[1735668256708,0.1188,94176.0,94166.0,0.053174]
[1735668257010,0.1188,94176.0,94175.0,0.053169]
[1735668257212,0.0125561,94177.0,94176.0,0.053169]
[1735668257520,0.00159349,94177.0,94176.0,0.053169]
[1735668259717,0.00759349,94177.0,94176.0,0.054169]
[1735668260113,0.01659349,94177.0,94176.0,0.054169]
[1735668263824,0.06976149,94177.0,94176.0,0.001]
[1735668264319,0.053169,94176.0,94157.0,0.4834]
[1735668264528,0.053179,94158.0,94157.0,0.3608]
[1735668264720,0.3608,94169.0,94148.0,0.3608]
[1735668264919,0.053187,94144.0,94139.0,0.3608]
[1735668265121,0.053189,94140.0,94139.0,0.3608]
[1735668265419,0.05319,94138.0,94137.0,0.053191]
[1735668266712,0.05319,94138.0,94137.0,0.056191]
[1735668266918,0.05419,94138.0,94137.0,0.007]
[1735668269327,0.05319,94138.0,94137.0,0.003]
[1735668269522,0.05319,94138.0,94137.0,0.006]
[1735668270126,0.05419,94138.0,94137.0,0.056191]
[1735668270326,0.05419,94138.0,94137.0,0.053191]
[1735668270629,0.05619,94138.0,94137.0,0.053191]
[1735668270826,0.003,94138.0,94137.0,0.053191]
[1735668271017,0.001,94138.0,94137.0,0.055191]
[1735668271629,0.053175,94165.0,94142.0,0.053188]
[1735668271820,0.053175,94165.0,94152.0,0.053182]
[1735668272320,0.3608,94169.0,94168.0,0.053173]
[1735668273827,0.416973,94169.0,94154.0,1.5]
[1735668274130,0.416973,94169.0,94168.0,0.053173]
[1735668274331,0.3688,94169.0,94168.0,0.053173]
[1735668275523,0.3658,94169.0,94168.0,0.053173]
[1735668275923,0.3608,94169.0,94168.0,0.053173]
[1735668276333,0.3638,94169.0,94168.0,0.053173]
[1735668276830,0.05318,94157.0,94154.0,0.053741]
[1735668277047,0.05318,94156.0,94154.0,0.053181]
[1735668278027,0.3688,94169.0,94141.0,0.3608]
[1735668278226,0.053181,94154.0,94143.0,0.053187]
[1735668278528,0.3608,94161.0,94151.0,0.053183]
[1735668278730,0.053182,94152.0,94151.0,0.053183]
[1735668279533,0.52356688,94161.0,94143.0,0.002]
[1735668279722,0.053187,94144.0,94143.0,0.055187]
[1735668279928,0.053184,94150.0,94143.0,0.002]
[1735668280128,0.053184,94150.0,94149.0,0.053184]
[1735668280435,0.1164,94160.0,94152.0,0.053182]
[1735668280436,0.01099545,94153.0,94152.0,0.053182]
[1735668280640,0.053182,94153.0,94152.0,0.053182]
[1735668281634,0.053182,94153.0,94152.0,0.056182]
[1735668282241,0.3608,94161.0,94152.0,0.003]
[1735668282242,0.01086045,94157.0,94152.0,0.003]
[1735668282540,0.053179,94158.0,94152.0,0.003]
[1735668282842,0.053182,94154.0,94152.0,0.056182]
[1735668283137,0.053182,94154.0,94143.0,0.002]
[1735668283138,0.053182,94154.0,94153.0,0.053182]
[1735668283642,0.06428688,94160.0,94158.0,0.053179]
[1735668283835,0.053175,94165.0,94150.0,0.16276688]
[1735668284136,0.053172,94170.0,94167.0,0.053173]
[1735668284337,0.053173,94168.0,94167.0,0.053173]
[1735668284637,0.36239358,94173.0,94151.0,1.5]
[1735668284838,0.053175,94166.0,94163.0,0.053176]
[1735668285035,0.53574861,94173.0,94149.0,0.3608]
[1735668285228,0.053174,94166.0,94149.0,0.3608]
[1735668285430,0.053174,94166.0,94164.0,0.053175]
[1735668285739,0.053174,94166.0,94165.0,0.053175]
[1735668285931,0.01058815,94173.0,94172.0,0.053171]
[1735668286129,0.053167,94179.0,94172.0,0.053171]
[1735668286341,0.05317,94173.0,94172.0,0.053171]
[1735668286939,0.053174,94167.0,94159.0,0.3608]
[1735668287929,0.053174,94167.0,94166.0,0.053174]
[1735668288343,0.054174,94167.0,94166.0,0.053174]
[1735668289539,0.001,94167.0,94152.0,0.053182]
[1735668289739,0.053182,94152.0,94151.0,0.053182]
[1735668290241,0.053184,94148.0,94147.0,0.00159311]
[1735668290439,0.3608,94154.0,94135.0,0.01091063]
[1735668290643,0.053191,94136.0,94123.0,0.19087454]
[1735668290942,0.053191,94136.0,94135.0,0.053192]
[1735668291534,0.3608,94143.0,94126.0,0.053197]
[1735668291836,0.001,94167.0,94120.0,0.16276688]
[1735668291837,0.05319,94138.0,94137.0,0.053191]
[1735668293345,0.06422554,94143.0,94142.0,0.053188]
[1735668293540,0.053188,94143.0,94142.0,0.053188]
[1735668294045,0.01084095,94150.0,94149.0,0.053184]
[1735668294245,0.413981,94154.0,94153.0,0.053182]
[1735668295446,0.053181,94154.0,94153.0,0.053182]
[1735668296437,0.06410115,94154.0,94153.0,0.054182]
[1735668296646,0.06810115,94154.0,94153.0,0.054182]
[1735668297246,0.07110115,94154.0,94153.0,0.053182]
[1735668297543,0.06710115,94154.0,94153.0,0.053182]
[1735668297846,0.07110115,94154.0,94153.0,0.053182]
[1735668300145,0.06710115,94154.0,94153.0,0.053182]
[1735668300943,0.06510115,94154.0,94153.0,0.053182]
[1735668301345,0.053192,94135.0,94126.0,0.3608]
[1735668301543,0.053196,94127.0,94126.0,0.3608]
[1735668301746,0.3608,94127.0,94105.0,0.3608]
[1735668302051,0.053204,94113.0,94106.0,0.053208]
[1735668302254,0.053204,94113.0,94090.0,0.111]
[1735668302448,0.053204,94113.0,94096.0,0.3608]
[1735668302449,0.053211,94101.0,94096.0,0.3608]
[1735668302654,0.10854337,94106.0,94098.0,0.053213]
[1735668302847,0.053209,94105.0,94104.0,0.3608]
[1735668303048,0.053196,94128.0,94104.0,0.3608]
[1735668303253,0.053205,94112.0,94110.0,0.053205]
[1735668303455,0.053205,94112.0,94109.0,0.053206]
[1735668303753,0.10854337,94120.0,94104.0,0.3608]
[1735668303955,0.12714243,94126.0,94115.0,0.053203]
[1735668303956,0.053201,94119.0,94115.0,0.053203]
[1735668304147,0.0532,94120.0,94116.0,0.053202]
[1735668304349,0.053202,94118.0,94116.0,0.053202]
[1735668304547,0.12714243,94126.0,94116.0,0.053202]
[1735668304747,0.053202,94117.0,94116.0,0.053202]
[1735668304941,0.053203,94116.0,94112.0,0.3618]
[1735668305146,0.053203,94116.0,94115.0,0.054203]
[1735668305354,0.0532,94122.0,94119.0,0.0532]
[1735668305551,0.053198,94125.0,94122.0,0.053199]
[1735668305853,0.3623943,94132.0,94122.0,0.053199]
[1735668305854,0.053199,94123.0,94122.0,0.053199]
[1735668306052,0.0532,94121.0,94120.0,1.50056]
[1735668306447,0.0532,94121.0,94120.0,1.5532]
[1735668306753,0.053199,94124.0,94123.0,0.053198]
[1735668306948,0.0532,94121.0,94120.0,1.5]
[1735668307349,0.053204,94114.0,94113.0,0.053204]
[1735668309353,0.053204,94114.0,94113.0,0.055204]
[1735668309846,0.054204,94114.0,94113.0,0.055204]
[1735668311453,0.054204,94114.0,94113.0,0.053204]
[1735668311659,0.054204,94114.0,94113.0,0.054204]
[1735668313255,0.054204,94114.0,94113.0,0.001]
[1735668313460,0.054204,94114.0,94094.0,0.3608]
[1735668313461,0.001,94114.0,94094.0,0.3608]
[1735668313650,0.3608,94107.0,94094.0,0.3608]
[1735668313848,0.053214,94095.0,94094.0,0.3608]
[1735668314247,0.053221,94083.0,94082.0,0.01066719]
[1735668314753,0.053225,94077.0,94076.0,0.0015943]
[1735668315557,0.414025,94077.0,94055.0,0.053237]
[1735668315753,0.3608,94067.0,94054.0,0.3608]
[1735668315958,0.1089,94066.0,94054.0,0.3608]
[1735668316156,0.053234,94061.0,94055.0,0.053237]
[1735668316356,0.1079,94076.0,94054.0,0.3608]
[1735668316557,0.053228,94071.0,94069.0,0.053229]
[1735668317059,0.001,94066.0,94062.0,0.3608]
[1735668317268,0.001,94066.0,94065.0,0.053231]
[1735668318257,0.3608,94088.0,94065.0,0.3]
[1735668318458,0.3608,94088.0,94087.0,0.053219]
[1735668319466,0.002,94088.0,94087.0,0.053219]
[1735668319765,0.053222,94083.0,94082.0,0.053222]
[1735668320968,0.053222,94083.0,94082.0,1.553222]
[1735668321352,0.053222,94082.0,94081.0,0.3608]
[1735668321566,0.001,94088.0,94083.0,0.053221]
[1735668321567,0.053219,94087.0,94083.0,0.053221]
[1735668321762,0.053219,94087.0,94081.0,0.3608]
[1735668321763,0.001,94088.0,94081.0,0.3608]
[1735668321951,0.001,94088.0,94087.0,0.053219]
[1735668322158,0.053216,94092.0,94091.0,0.053217]
[1735668322863,0.01054542,94093.0,94082.0,0.002]
[1735668323068,0.3608,94099.0,94082.0,0.002]
[1735668323069,0.053218,94089.0,94082.0,0.002]
[1735668323558,0.3608,94091.0,94082.0,0.002]
[1735668324059,0.053222,94082.0,94081.0,0.3628]
[1735668324564,0.053222,94082.0,94081.0,0.002]
[1735668324957,0.053225,94076.0,94075.0,0.3608]
[1735668326863,0.054225,94076.0,94075.0,0.415026]
[1735668327161,0.001,94076.0,94075.0,0.415026]
[1735668327365,0.001,94076.0,94075.0,0.057226]
[1735668327559,0.054225,94076.0,94075.0,0.004]
[1735668328867,0.054225,94076.0,94075.0,0.057226]
[1735668330268,0.001,94076.0,94075.0,0.057226]
[1735668331068,0.001,94076.0,94075.0,0.004]
[1735668331271,0.054225,94076.0,94075.0,0.057226]
[1735668331467,0.001,94076.0,94075.0,0.057226]
[1735668331657,0.053204,94114.0,94075.0,0.3648]
[1735668331863,0.053217,94091.0,94090.0,0.053217]
[1735668332870,0.0110122,94094.0,94093.0,0.053215]
[1735668333064,0.06554428,94096.0,94092.0,0.3608]
[1735668333276,0.06554428,94096.0,94095.0,0.053214]
[1735668333566,0.01233028,94096.0,94090.0,0.001]
[1735668333868,0.053217,94091.0,94090.0,0.001]
[1735668334169,0.01233028,94096.0,94090.0,0.001]
[1735668334367,0.06554428,94096.0,94095.0,0.053214]
[1735668334574,0.06654428,94096.0,94095.0,0.053214]
[1735668335061,0.06654428,94096.0,94095.0,0.054214]
[1735668336070,0.06654428,94096.0,94095.0,0.001]
[1735668336271,0.06554428,94096.0,94095.0,0.001]
[1735668336864,0.06554428,94096.0,94095.0,0.054214]
[1735668337262,0.06654428,94096.0,94095.0,0.054214]
[1735668337890,0.06554428,94096.0,94095.0,0.054214]
[1735668338080,0.06654428,94096.0,94095.0,0.053214]
[1735668338264,0.06654428,94096.0,94095.0,0.054214]
[1735668338573,0.01333028,94096.0,94095.0,0.054214]
[1735668338763,0.3608,94124.0,94114.0,0.053204]
[1735668338959,0.16304626,94150.0,94114.0,0.053204]
[1735668338960,0.3608,94144.0,94131.0,0.053194]
[1735668339162,0.3608,94154.0,94131.0,0.3608]
[1735668339367,0.01074101,94150.0,94141.0,0.413988]
[1735668339660,0.31414589,94184.0,94149.0,0.3608]
[1735668339870,0.31414589,94184.0,94171.0,0.3608]
[1735668340376,0.053169,94176.0,94171.0,0.3608]
[1735668340564,0.053168,94178.0,94171.0,0.413971]
[1735668340764,0.05475761,94184.0,94177.0,0.053168]
[1735668340965,0.053165,94183.0,94179.0,0.053167]
[1735668341171,0.053165,94183.0,94180.0,0.053166]
[1735668341367,0.053165,94183.0,94171.0,0.3608]
[1735668341368,0.053165,94183.0,94181.0,0.053166]
[1735668341762,0.01822958,94184.0,94171.0,0.3618]
[1735668342069,0.053168,94178.0,94171.0,0.001]
[1735668342472,0.05317,94174.0,94171.0,0.001]
[1735668342673,0.3608,94173.0,94171.0,0.001]
[1735668342872,0.05317,94174.0,94171.0,0.001]
[1735668343069,0.05317,94174.0,94170.0,0.053172]
[1735668343575,0.053172,94170.0,94164.0,0.053175]
[1735668343773,0.053169,94175.0,94164.0,0.053175]
[1735668343966,0.053172,94171.0,94164.0,0.053175]
[1735668344674,0.001,94170.0,94164.0,0.053175]
[1735668345278,0.001,94170.0,94163.0,0.3608]
[1735668345479,0.001,94170.0,94166.0,0.053174]
[1735668345777,0.001,94170.0,94169.0,0.053173]
[1735668346667,0.001,94171.0,94169.0,0.053173]
[1735668346970,0.01182671,94171.0,94140.0,0.16272245]
[1735668347279,0.053176,94163.0,94156.0,0.05318]
[1735668347473,0.3608,94166.0,94156.0,0.05318]
[1735668347975,0.053178,94159.0,94156.0,0.05318]
[1735668348274,0.053175,94165.0,94156.0,0.05318]
[1735668348477,0.053178,94160.0,94156.0,0.05318]